bitfinex/quotes_ETHUSD_20240731
["timestamp","ask_amount","ask_price","bid_price","bid_amount"]
[1722468121173,2.26533411,3237.8,3237.7,3.08855]
[1722468121567,2.26533411,3237.8,3237.6,3.08869]
[1722468121799,2.26533411,3237.8,3237.7,3.08861]
[1722468122204,2.26550501,3237.8,3237.7,3.08861]
[1722468122370,2.26550501,3237.8,3237.5,3.08873]
[1722468122570,2.26550501,3237.8,3236.7,3.08956]
[1722468122571,0.97102313,3236.8,3236.7,3.08956]
[1722468122835,1.61837189,3237.0,3236.8,3.08947]
[1722468123117,1.61837189,3237.0,3236.9,3.08937]
[1722468123430,1.61837189,3237.0,3236.9,6.17874]
[1722468123777,1.61837189,3237.0,3236.9,9.17874]
[1722468124309,1.61837189,3237.0,3236.9,6.08937]
[1722468124677,1.94204533,3237.3,3236.9,9.17867]
[1722468125017,1.61882782,3237.0,3236.9,6.0893]
[1722468125168,1.94259172,3237.2,3236.9,6.0893]
[1722468125770,1.94259172,3237.2,3237.1,3.08918]
[1722468126179,1.94259172,3237.2,3236.9,6.0893]
[1722468126420,1.94259172,3237.1,3237.0,3.08927]
[1722468127325,2.26635701,3237.4,3237.0,3.08927]
[1722468127474,2.26635701,3237.4,3237.3,3.08899]
[1722468127676,2.26635701,3237.5,3237.3,3.08899]
[1722468128015,2.26635701,3237.5,3237.1,3.0891]
[1722468128016,1.94382978,3237.2,3237.1,3.0891]
[1722468128380,4.23180547,3237.7,3237.1,3.0891]
[1722468128611,2.26818252,3237.4,3237.2,3.08904]
[1722468130210,1.94466317,3237.1,3237.0,3.08921]
[1722468130379,3.0887,3237.6,3237.0,3.08921]
[1722468130576,0.6809636,3237.6,3237.0,3.08921]
[1722468130817,2.26939568,3237.3,3237.2,3.08903]
[1722468131017,2.26939568,3237.4,3237.2,3.08903]
[1722468131419,2.26939568,3237.3,3237.2,3.08903]
[1722468131624,5.6663305,3237.8,3237.3,3.08897]
[1722468131829,2.68140181,3237.6,3237.3,3.08897]
[1722468132010,0.04814651,3237.5,3237.3,3.08897]
[1722468132415,2.6814069,3237.6,3237.4,0.06177638]
[1722468132732,2.6814069,3237.6,3237.5,6.1776]
[1722468133028,2.6814069,3237.7,3237.6,6.1774]
[1722468133201,2.6814069,3237.8,3237.7,3.08861]
[1722468133795,2.6814069,3237.8,3237.6,3.0887]
[1722468133992,1.62116078,3237.9,3237.7,3.08861]
[1722468134191,1.62117053,3237.9,3237.7,3.08861]
[1722468134626,4.40610464,3238.2,3237.7,3.08861]
[1722468134627,1.29646961,3237.8,3237.7,3.08861]
[1722468134924,2.4607,3238.2,3237.7,3.08861]
[1722468135117,1.62056884,3237.9,3237.7,3.08861]
[1722468135313,1.29612306,3237.8,3237.7,3.08861]
[1722468135905,1.29612306,3237.8,3237.7,6.17722]
[1722468136106,1.29612306,3237.9,3237.8,3.08851]
[1722468136435,1.29612306,3238.0,3237.8,3.08851]
[1722468137417,0.97137538,3237.9,3237.8,3.08851]
[1722468138129,0.97137538,3237.9,3237.4,0.31507464]
[1722468138130,0.97137538,3237.9,3237.6,3.08862]
[1722468138332,0.97137538,3237.9,3237.1,4.58917]
[1722468138333,0.97141936,3237.8,3237.3,3.08892]
[1722468138543,0.97141936,3237.7,3237.5,3.08875]
[1722468139030,0.97141936,3237.7,3237.5,3.08874]
[1722468139811,0.97141936,3237.7,3237.5,6.17747]
[1722468140003,0.97141936,3237.7,3237.5,3.08873]
[1722468140335,0.97141936,3237.8,3237.5,3.08873]
[1722468140732,0.97141936,3237.8,3237.6,3.0887]
[1722468140940,0.97141936,3237.8,3237.7,3.08861]
[1722468141645,0.97141936,3237.8,3237.4,6.08884]
[1722468142001,0.97141936,3237.7,3237.4,6.08884]
[1722468142247,0.97141936,3237.7,3237.5,3.08878]
[1722468142924,1.61799857,3238.0,3237.7,3.08861]
[1722468142925,0.97141936,3237.8,3237.7,3.08861]
[1722468143124,0.97141936,3237.9,3237.7,3.08861]
[1722468143729,0.97141936,3237.9,3237.8,6.23879067]
[1722468143947,0.97141936,3238.0,3237.9,6.17684]
[1722468144148,1.29612306,3238.1,3238.0,3.08832]
[1722468144149,0.97141936,3238.1,3238.0,3.08832]
[1722468144319,0.97141936,3238.1,3238.0,6.17664]
[1722468145341,0.97141936,3238.2,3238.1,3.08823]
[1722468145944,0.97141936,3238.3,3238.1,3.08823]
[1722468146246,0.97141936,3238.3,3238.2,3.08813]
[1722468146446,1.29612306,3238.4,3238.2,3.08813]
[1722468146447,0.97141936,3238.4,3238.2,3.08813]
[1722468146958,0.04827367,3238.3,3238.2,3.08813]
[1722468147738,0.97141936,3238.5,3238.2,3.08813]
[1722468147935,0.04827367,3238.3,3238.2,3.08813]
[1722468148112,0.97141936,3238.4,3238.2,3.08813]
[1722468148312,0.97141936,3238.4,3237.5,1.5]
[1722468148313,0.04827367,3238.3,3237.9,3.08836]
[1722468148628,1.01969303,3238.3,3238.0,3.08827]
[1722468148833,0.04827367,3238.3,3238.0,3.08827]
[1722468150246,0.04827367,3238.3,3238.2,3.08813]
[1722468150447,0.97141936,3238.5,3238.2,3.08813]
[1722468150610,0.04837514,3238.3,3238.2,3.08813]
[1722468150809,0.97141936,3238.5,3238.2,3.08813]
[1722468151047,0.04842823,3238.4,3238.2,3.08813]
[1722468151350,0.9691284,3238.5,3238.2,3.08813]
[1722468151646,0.9691284,3238.8,3238.4,3.08794]
[1722468152010,3.3618284,3239.0,3238.6,3.08769]
[1722468154147,3.3618284,3239.0,3238.6,6.17539]
[1722468154354,3.3618284,3239.0,3238.6,3.08769]
[1722468154519,3.3618284,3239.0,3238.6,3.0877]
[1722468155133,2.3927,3239.0,3238.6,3.0877]
[1722468155533,2.3927,3239.0,3238.6,6.17536]
[1722468155733,2.3927,3239.0,3238.7,3.08763]
[1722468156144,2.3927,3239.0,3238.2,0.508813]
[1722468156145,2.3927,3239.0,3238.5,3.08778]
[1722468156345,6.4491984,3239.0,3238.4,3.08789]
[1722468156550,3.08769,3238.7,3238.2,0.2]
[1722468156720,7.1441984,3238.9,3238.2,3.28812]
[1722468157057,4.0566484,3238.9,3238.2,3.28812]
[1722468157657,0.9691284,3238.8,3238.2,3.28812]
[1722468158224,3.08756,3238.8,3238.2,3.28812]
[1722468158428,4.0566884,3238.8,3238.2,3.48812]
[1722468158829,3.08756,3238.8,3238.2,3.48812]
[1722468159540,4.0566484,3238.9,3238.3,3.08803]
[1722468159947,4.0566484,3238.9,3238.4,3.08793]
[1722468160154,3.08752,3238.9,3238.4,3.08793]
[1722468160723,4.0566484,3238.9,3238.4,3.08793]
[1722468160963,4.05505534,3238.9,3238.4,3.08793]
[1722468161830,0.04895249,3238.8,3238.4,3.08793]
[1722468163441,0.04895249,3238.8,3238.2,6.77619]
[1722468163756,0.04895249,3238.8,3238.3,3.08802]
[1722468166142,0.04895249,3238.8,3238.4,0.06175798]
[1722468166344,0.04895249,3238.8,3238.5,3.08775]
[1722468166888,0.04885883,3238.7,3238.5,3.08775]
[1722468167053,6.44758138,3239.0,3238.5,3.08775]
[1722468167263,0.04880575,3238.6,3238.5,3.08775]
[1722468167588,6.44758138,3239.0,3238.5,3.08775]
[1722468167762,0.04880575,3238.6,3238.2,0.8]
[1722468167956,3.0877,3238.7,3238.2,0.8]
[1722468168159,0.04875267,3238.5,3238.2,0.8]
[1722468168356,3.0877,3238.7,3238.2,0.8]
[1722468168357,0.04880575,3238.6,3238.2,0.8]
[1722468168565,0.04869958,3238.4,3238.2,0.8]
[1722468168766,0.96750138,3238.8,3238.2,4.576946]
[1722468168977,0.04864649,3238.3,3238.2,4.576946]
[1722468169483,4.05507138,3238.8,3238.2,4.576946]
[1722468169646,0.04864649,3238.3,3238.2,4.576946]
[1722468170080,4.05502138,3238.9,3238.3,3.08795]
[1722468170279,9.8627,3239.0,3238.5,3.08779]
[1722468170280,10.83020138,3239.0,3238.5,3.08779]
[1722468170494,7.47,3239.0,3238.7,3.08765]
[1722468170982,7.47,3239.0,3238.5,3.08779]
[1722468170983,0.96750138,3238.9,3238.5,3.08779]
[1722468171547,0.96750138,3238.8,3238.5,3.08779]
[1722468171741,4.05506138,3238.8,3238.3,3.08797]
[1722468172184,3.08792,3238.5,3238.2,1.0]
[1722468172385,4.05554138,3238.3,3238.2,1.0]
[1722468172596,4.37790184,3238.5,3238.2,1.0]
[1722468172801,0.96875349,3238.3,3238.2,1.0]
[1722468173005,1.29000184,3238.5,3238.2,1.0]
[1722468173006,0.96875349,3238.4,3238.2,1.0]
[1722468173346,0.96875349,3238.3,3238.2,1.0]
[1722468174050,1.29000184,3238.3,3238.2,1.0]
[1722468174876,4.70307271,3238.4,3238.2,1.0]
[1722468175180,3.08804,3238.3,3238.2,1.0]
[1722468175753,4.70316271,3238.3,3238.2,1.0]
[1722468175958,3.08804,3238.3,3238.2,1.0]
[1722468176305,1.61512271,3238.3,3238.2,1.0]
[1722468176686,3.08804,3238.3,3238.2,1.0]
[1722468176853,3.13683956,3238.3,3238.2,1.0]
[1722468177053,0.04879956,3238.3,3238.2,1.0]
[1722468177284,1.61706149,3238.4,3238.2,1.0]
[1722468177466,1.66586105,3238.3,3238.2,1.0]
[1722468178278,0.04879956,3238.3,3238.2,1.0]
[1722468180993,6.17576,3238.5,3238.2,1.0]
[1722468181192,0.04869176,3238.3,3238.2,1.0]
[1722468181394,3.08785,3238.5,3238.2,1.0]
[1722468181595,0.04869176,3238.3,3238.2,1.0]
[1722468181791,3.08794,3238.4,3238.2,1.0]
[1722468182006,0.04869176,3238.3,3238.2,1.0]
[1722468185908,3.13673176,3238.3,3238.2,1.0]
[1722468186078,0.04869176,3238.3,3238.2,1.0]
[1722468189600,2.483,3238.7,3238.2,4.08807]
[1722468189775,0.04866269,3238.3,3238.2,4.08807]
[1722468189978,3.08762,3238.8,3238.2,4.805704]
[1722468190222,0.04866269,3238.3,3238.2,4.08807]
[1722468190429,1.101,3238.7,3238.2,4.08807]
[1722468190582,0.04866269,3238.3,3238.2,4.08807]
[1722468191121,1.101,3238.7,3238.2,4.08807]
[1722468191288,1.101,3238.7,3238.3,3.08803]
[1722468191477,0.04868929,3238.6,3238.4,3.08792]
[1722468191679,10.55738,3239.0,3238.5,3.08784]
[1722468191932,0.04889516,3238.9,3238.5,3.08784]
[1722468193324,0.04889516,3238.9,3238.3,3.14969362]
[1722468193515,0.04889516,3238.9,3238.4,3.08791]
[1722468193909,1.14989516,3238.9,3238.4,3.08791]
[1722468194980,0.59409257,3238.8,3238.4,3.08791]
[1722468195181,1.14989516,3238.9,3238.4,3.08791]
[1722468195386,0.04880423,3238.7,3238.4,3.08791]
[1722468195595,3.08738,3239.0,3238.5,0.38116864]
[1722468195596,0.04885731,3238.8,3238.5,0.38116864]
[1722468196012,1.101,3239.0,3238.3,0.72377636]
[1722468196343,3.08761,3238.8,3238.3,0.72377636]
[1722468196543,0.04864505,3238.7,3238.3,0.72377636]
[1722468196751,3.08761,3238.8,3238.3,0.72377636]
[1722468197099,0.04864505,3238.7,3238.3,0.72377636]
[1722468197338,4.18861,3238.8,3238.2,1.0]
[1722468197555,0.64270257,3238.7,3238.2,1.0]
[1722468197758,4.18875,3238.6,3238.2,1.0]
[1722468197954,0.04859194,3238.5,3238.2,1.0]
[1722468199355,0.04859194,3238.5,3238.2,4.08812]
[1722468199507,0.04859194,3238.5,3238.3,0.408812]
[1722468199710,3.08775,3238.6,3238.2,1.0]
[1722468199916,1.61824099,3238.3,3238.2,1.0]
[1722468200226,1.66688595,3238.3,3238.2,1.0]
[1722468200861,0.04864496,3238.3,3237.9,6.08839]
[1722468201053,1.61819132,3238.0,3237.6,5.34499]
[1722468201351,1.29444077,3237.8,3237.7,3.08861]
[1722468201550,0.04866511,3237.8,3237.7,3.08861]
[1722468202314,0.04866511,3237.8,3237.7,6.23898733]
[1722468202518,1.61819132,3238.1,3238.0,3.08832]
[1722468202519,1.29444077,3238.1,3238.0,3.08832]
[1722468202818,1.29444077,3238.1,3237.9,3.08833]
[1722468202819,1.34318977,3238.1,3237.9,3.08833]
[1722468203051,1.29444077,3238.0,3237.9,3.08833]
[1722468203357,0.04867816,3238.0,3237.9,3.08833]
[1722468203781,1.29463517,3238.1,3238.0,3.08832]
[1722468204065,1.34336388,3238.1,3238.0,3.705985]
[1722468204474,1.34336388,3238.1,3238.0,7.895305]
[1722468204685,0.04872871,3238.1,3238.0,7.895305]
[1722468204859,0.04872871,3238.1,3238.0,10.182505]
[1722468205057,0.04872871,3238.1,3238.0,13.270825]
[1722468205262,1.29463517,3238.5,3238.0,8.993185]
[1722468205446,1.29463517,3238.5,3238.1,3.96107271]
[1722468205773,1.61849948,3238.7,3238.5,3.08784]
[1722468205981,1.61849948,3238.6,3238.5,3.08784]
[1722468206680,3.08737,3239.0,3238.5,3.08784]
[1722468206855,1.66618188,3238.6,3238.3,3.08803]
[1722468207054,1.66618188,3238.6,3238.1,3.8993185]
[1722468207055,1.2937069,3238.4,3238.2,3.08811]
[1722468207281,1.2935239,3238.3,3238.2,3.08811]
[1722468207443,1.34216144,3238.3,3238.2,4.234459]
[1722468207648,0.04863754,3238.3,3238.2,4.234459]
[1722468208279,0.04863754,3238.3,3238.2,7.322589]
[1722468208648,1.2935239,3238.4,3238.3,6.17608]
[1722468208951,1.61693563,3238.6,3238.4,3.08794]
[1722468208952,1.2935239,3238.5,3238.4,3.08794]
[1722468209151,1.2935239,3238.5,3238.4,6.9081129]
[1722468209763,1.2935239,3238.6,3238.5,3.08784]
[1722468210162,1.61693563,3238.7,3238.4,6.9080529]
[1722468210354,3.08744,3239.0,3238.4,3.08788]
[1722468210557,1.2936066,3238.5,3238.4,6.17573]
[1722468210765,1.2936066,3238.5,3238.4,3.08785]
[1722468211656,1.2936066,3238.5,3238.2,4.234429]
[1722468211657,1.2936066,3238.5,3238.3,3.08803]
[1722468211951,1.61715733,3238.4,3238.1,6.08817]
[1722468212287,1.61715733,3238.3,3238.2,3.08813]
[1722468212588,1.29334588,3238.4,3238.2,3.08813]
[1722468212952,1.29334588,3238.4,3238.3,3.08804]
[1722468213153,1.61715733,3238.5,3238.4,3.08794]
[1722468213154,1.29341489,3238.5,3238.4,3.08794]
[1722468213355,1.61715733,3238.6,3238.5,3.08784]
[1722468213356,1.29341704,3238.6,3238.5,3.08784]
[1722468213592,1.29341704,3238.6,3238.5,6.17568]
[1722468213758,10.55722,3239.2,3238.7,3.08759]
[1722468213759,1.6168936,3238.8,3238.7,3.08759]
[1722468214086,1.616842,3238.8,3238.7,3.08759]
[1722468214248,1.61682841,3238.8,3238.7,3.08759]
[1722468215261,1.61682841,3238.9,3238.7,3.08759]
[1722468216052,10.55722,3239.2,3238.7,3.08759]
[1722468216255,1.61693478,3238.8,3238.7,3.08759]
[1722468216470,1.94032173,3239.0,3238.7,3.08759]
[1722468216865,1.93926874,3239.0,3238.7,3.08759]
[1722468217090,1.93926874,3239.0,3238.5,3.08778]
[1722468217091,5.02663874,3239.0,3238.5,3.08778]
[1722468217298,1.61604446,3238.7,3238.5,3.08778]
[1722468217471,1.61604446,3238.7,3238.5,3.08777]
[1722468217674,10.55722,3239.2,3238.5,3.416547]
[1722468217675,1.29278778,3238.6,3238.5,3.416547]
[1722468218572,1.29278778,3238.7,3238.6,3.08775]
[1722468220197,1.29278778,3238.7,3238.6,6.1755]
[1722468220198,1.293245,3238.7,3238.6,6.1755]
[1722468220367,1.293245,3238.8,3238.7,3.08765]
[1722468220910,1.61655625,3238.9,3238.7,3.08765]
[1722468221076,1.29336353,3238.8,3238.7,3.08765]
[1722468221393,1.61655625,3238.8,3238.7,3.08765]
[1722468221893,1.66552685,3238.8,3238.7,3.08765]
[1722468222265,1.66651133,3238.8,3238.7,3.08765]
[1722468222464,1.66687814,3238.8,3238.7,3.08765]
[1722468223261,0.0489706,3238.8,3238.7,3.08765]
[1722468223468,1.61882053,3238.8,3238.7,3.08765]
[1722468223667,1.66780888,3238.8,3238.7,3.08765]
[1722468223897,0.04898835,3238.8,3238.7,3.08765]
[1722468224701,1.94252292,3239.0,3238.7,3.08765]
[1722468225088,0.04904142,3238.9,3238.7,3.08765]
[1722468226490,0.04904142,3238.9,3238.5,0.328777]
[1722468226491,0.04904142,3238.9,3238.5,3.416567]
[1722468226687,1.61961622,3238.6,3238.5,3.416567]
[1722468226999,1.66848243,3238.6,3238.5,3.416567]
[1722468227179,0.04888218,3238.6,3238.5,3.416567]
[1722468227375,1.94352031,3238.8,3238.5,3.416567]
[1722468227777,0.04894793,3238.7,3238.5,0.328777]
[1722468228105,1.1,3238.6,3238.4,0.2]
[1722468228405,6.18022822,3238.6,3238.4,0.2]
[1722468228592,5.08022822,3238.6,3238.4,0.2]
[1722468228967,1.94352031,3238.5,3238.4,0.2]
[1722468229230,1.99241514,3238.5,3238.4,0.2]
[1722468229772,0.04889483,3238.5,3238.4,0.2]
[1722468229977,1.99219429,3238.5,3238.4,0.2]
[1722468231119,1.99219429,3238.5,3237.5,3.08877]
[1722468231120,2.4306,3238.2,3236.7,1.02646153]
[1722468231290,3.08929,3237.0,3236.1,3.29612649]
[1722468231489,2.641,3237.2,3236.2,3.15177411]
[1722468231786,1.29471264,3237.4,3236.2,0.76834185]
[1722468231787,3.08957,3236.7,3236.2,0.76834185]
[1722468232004,0.04807714,3236.6,3236.1,2.3233]
[1722468232576,0.04807714,3236.6,3235.8,4.06320649]
[1722468232577,0.04807714,3236.6,3235.9,3.09032]
[1722468232783,0.04807714,3236.6,3235.8,3.09038]
[1722468233611,3.08987,3236.4,3235.8,3.09038]
[1722468233798,0.04761973,3236.3,3235.9,0.541368]
[1722468234518,0.04761973,3236.3,3235.9,3.541368]
[1722468234710,0.04761973,3236.3,3236.0,3.09022]
[1722468234906,3.08967,3236.6,3236.0,3.09022]
[1722468235216,3.08963,3236.7,3236.1,3.09013]
[1722468235418,3.13699082,3236.6,3236.1,3.7532798]
[1722468235589,3.13699082,3236.6,3236.1,0.6631498]
[1722468236119,3.08977,3236.5,3236.1,0.6631498]
[1722468236495,0.04722454,3236.4,3236.1,0.6631498]
[1722468237212,6.17921,3236.7,3236.1,0.6631498]
[1722468237213,0.04704196,3236.3,3236.1,0.6631498]
[1722468237420,3.08957,3236.7,3236.1,0.6631498]
[1722468237717,0.04698627,3236.2,3236.1,0.6631498]
[1722468237889,3.08957,3236.7,3236.1,3.7532598]
[1722468238089,0.04698627,3236.2,3236.1,3.7532198]
[1722468238295,3.08957,3236.7,3236.1,3.7532198]
[1722468238622,0.04669193,3236.6,3236.2,3.40171676]
[1722468238920,8.43976711,3237.7,3236.8,3.08942]
[1722468239096,7.47,3237.7,3236.9,0.06177876]
[1722468239495,3.0888,3237.5,3236.9,3.08935]
[1722468239797,3.0888,3237.5,3237.0,3.08926]
[1722468240320,10.55869,3237.7,3237.0,3.08926]
[1722468240484,7.47,3237.7,3237.3,3.0889]
[1722468240688,7.47,3237.7,3237.1,3.08916]
[1722468240890,10.5587,3237.7,3237.1,3.08916]
[1722468242722,3.08885,3237.5,3237.0,0.617868]
[1722468243022,7.47,3237.7,3237.2,3.08908]
[1722468243207,7.47,3237.7,3237.3,3.08899]
[1722468243725,7.47,3237.7,3237.1,3.0891]
[1722468243899,3.08858,3237.8,3237.2,3.08903]
[1722468244239,3.08858,3237.8,3237.2,3.15080388]
[1722468244387,3.08858,3237.8,3237.3,0.62399039]
[1722468244587,4.05741584,3237.9,3237.3,3.71297039]
[1722468244810,3.08853,3237.8,3237.3,3.71297039]
[1722468246438,0.03954825,3237.7,3237.3,3.71297039]
[1722468246938,3.08853,3237.8,3237.3,3.71297039]
[1722468247102,0.03941556,3237.6,3237.3,3.71297039]
[1722468247303,0.03946867,3237.7,3237.3,3.71297039]
[1722468247502,0.03936245,3237.5,3237.3,3.71297039]
[1722468247736,3.08853,3237.8,3237.6,0.2]
[1722468251507,0.96893584,3237.9,3237.6,0.2]
[1722468251706,0.96893584,3237.9,3237.6,0.4]
[1722468251908,0.03957324,3237.8,3237.6,0.4]
[1722468252930,3.12812324,3237.8,3237.6,0.4]
[1722468253209,6.17722,3237.7,3237.6,0.4]
[1722468253439,6.21707072,3237.7,3237.6,0.4]
[1722468253607,9.30568072,3237.7,3237.6,0.4]
[1722468254113,9.30568072,3237.7,3237.6,0.39841293]
[1722468254421,10.27372022,3237.7,3237.6,0.39841293]
[1722468254615,8.65607807,3237.7,3237.6,0.39841293]
[1722468255843,8.65607807,3237.7,3237.6,0.59841293]
[1722468257827,0.03985072,3237.7,3237.6,0.59841293]
[1722468258021,0.9680395,3237.8,3237.6,0.59841293]
[1722468258226,0.03971726,3237.7,3237.6,0.59841293]
[1722468258423,4.0565695,3237.8,3237.6,0.59841293]
[1722468258626,0.03971726,3237.7,3237.6,0.59841293]
[1722468258836,4.0565695,3237.8,3237.6,0.59841293]
[1722468259015,0.03971726,3237.7,3237.6,0.59841293]
[1722468259223,0.9680395,3237.8,3237.6,0.59841293]
[1722468259545,0.03974264,3237.7,3237.6,0.59841293]
[1722468259913,0.9680395,3237.9,3237.6,0.79841293]
[1722468260135,0.03974264,3237.7,3237.6,0.79841293]
[1722468260339,0.9680395,3237.8,3237.6,0.79841293]
[1722468260647,0.03974264,3237.7,3237.6,0.79841293]
[1722468261148,4.0565595,3237.8,3237.6,0.79841293]
[1722468261357,0.03974264,3237.7,3237.6,0.79841293]
[1722468261719,4.0565595,3237.8,3237.6,0.79841293]
[1722468261919,0.03974264,3237.7,3237.6,0.79841293]
[1722468262343,4.0565695,3237.8,3237.6,0.79841293]
[1722468262553,0.03974264,3237.7,3237.6,0.79841293]
[1722468262911,2.07571038,3237.8,3237.6,0.79841293]
[1722468263119,0.03974264,3237.7,3237.6,0.79841293]
[1722468263517,2.07549959,3237.8,3237.6,0.79841293]
[1722468263820,0.03974264,3237.7,3237.6,0.79841293]
[1722468264024,3.08861,3237.7,3237.6,0.99841293]
[1722468264224,1.00757135,3237.7,3237.6,0.99841293]
[1722468268262,0.03974264,3237.7,3237.6,0.99841293]
[1722468268628,1.29043828,3237.8,3237.6,0.99841293]
[1722468268963,0.03974264,3237.7,3237.6,0.99841293]
[1722468269368,1.29043828,3237.7,3237.6,0.99841293]
[1722468269669,1.33018092,3237.7,3237.6,0.99841293]
[1722468273066,1.33306758,3237.7,3237.6,0.99841293]
[1722468273379,0.03974264,3237.7,3237.6,0.99841293]
[1722468273728,1.61725163,3237.8,3237.6,0.99841293]
[1722468274031,0.03993529,3237.7,3237.6,0.99841293]
[1722468274248,1.61725163,3237.7,3237.6,0.99841293]
[1722468274477,1.65718692,3237.7,3237.6,0.99841293]
[1722468276396,1.65894807,3237.7,3237.6,0.99841293]
[1722468276675,0.63312809,3237.7,3237.6,0.99841293]
[1722468276838,0.03993529,3237.7,3237.6,0.99841293]
[1722468277041,0.59316469,3237.7,3237.6,0.99841293]
[1722468277256,1.73409491,3237.7,3237.6,0.99841293]
[1722468277580,13.16482793,3237.7,3237.6,0.99841293]
[1722468277738,13.28042491,3237.7,3237.6,0.99841293]
[1722468279934,12.68726022,3237.7,3237.6,0.99841293]
[1722468280133,13.28005877,3237.7,3237.6,0.99841293]
[1722468281166,15.22307929,3237.7,3237.6,0.99841293]
[1722468281369,16.74538722,3237.7,3237.6,0.99841293]
[1722468282173,12.55577722,3237.7,3237.6,0.99841293]
[1722468282348,13.65677722,3237.7,3237.6,0.99841293]
[1722468282963,13.65819124,3237.7,3237.6,0.99841293]
[1722468283613,13.65831583,3237.7,3237.6,0.99841293]
[1722468284400,11.7137567,3237.7,3237.6,0.99841293]
[1722468286389,13.65822042,3237.7,3237.6,0.99841293]
[1722468287061,16.74683042,3237.7,3237.6,0.99841293]
[1722468287574,13.65822042,3237.7,3237.6,0.99841293]
[1722468287778,16.74683042,3237.7,3237.6,0.99841293]
[1722468287951,13.65822042,3237.7,3237.6,0.99841293]
[1722468288355,13.19822871,3237.7,3237.6,0.99841293]
[1722468289486,15.87545065,3237.7,3237.6,0.99841293]
[1722468289644,15.87542031,3237.7,3237.6,0.99841293]
[1722468290182,13.19822871,3237.7,3237.6,0.99841293]
[1722468290597,15.87542031,3237.7,3237.6,0.99841293]
[1722468291215,13.19822871,3237.7,3237.6,0.99841293]
[1722468292278,13.19659871,3237.7,3237.6,0.99841293]
[1722468292497,11.7137567,3237.7,3237.6,0.99841293]
[1722468292713,15.87206238,3237.7,3237.6,0.99841293]
[1722468292999,11.7137567,3237.7,3237.6,0.99841293]
[1722468294389,3.08903,3237.3,3236.8,3.08946]
[1722468294590,1.61746917,3237.0,3236.8,3.08946]
[1722468294788,1.61746917,3237.0,3236.9,3.08937]
[1722468294994,1.61746917,3237.1,3237.0,3.08928]
[1722468295154,1.101,3237.1,3236.5,3.08969]
[1722468295353,0.97036741,3236.7,3236.6,3.08963]
[1722468295552,1.29382322,3236.8,3236.6,3.08963]
[1722468295787,1.29382322,3236.8,3236.5,3.08974]
[1722468296022,0.97037488,3236.7,3236.5,3.933902]
[1722468296279,0.97037488,3236.7,3236.5,3.933862]
[1722468296853,0.03952228,3236.6,3236.5,3.933862]
[1722468298561,0.03952228,3236.6,3236.5,0.844162]
[1722468298763,0.03952228,3236.6,3236.4,3.08983]
[1722468299164,0.03952228,3236.6,3236.5,3.08975]
[1722468299576,0.96994148,3236.8,3236.6,3.0896]
[1722468301370,0.96994148,3236.8,3236.6,6.1792]
[1722468301585,0.96994148,3236.8,3236.7,3.08956]
[1722468301780,0.96994148,3236.9,3236.7,3.707476]
[1722468302110,2.26319679,3237.0,3236.8,2.2762]
[1722468302266,0.96994148,3236.9,3236.8,2.2762]
[1722468303419,0.96994148,3236.9,3236.8,5.36567]
[1722468303612,0.96994148,3237.0,3236.9,3.08937]
[1722468303811,0.96994148,3237.0,3236.9,6.17874]
[1722468304014,0.96994148,3237.1,3237.0,6.17856]
[1722468304614,0.96994148,3237.1,3237.0,3.08928]
[1722468304914,0.96994148,3237.2,3237.1,3.08918]
[1722468305146,1.56348449,3237.2,3237.1,3.08918]
[1722468306887,0.96994148,3237.5,3237.1,3.3653]
[1722468307185,0.96994148,3237.6,3237.5,3.0888]
[1722468307389,1.51531835,3237.6,3237.5,3.0888]
[1722468310888,1.51582448,3237.6,3237.5,3.0888]
[1722468311970,1.55108734,3237.6,3237.5,3.0888]
[1722468312170,0.58063973,3237.6,3237.5,3.0888]
[1722468312399,1.5510463,3237.6,3237.5,3.0888]
[1722468313014,0.58063973,3237.6,3237.3,3.08898]
[1722468313324,4.60459814,3237.5,3236.9,3.08932]
[1722468313468,1.51579814,3237.4,3237.1,3.08918]
[1722468313673,0.03518234,3237.3,3237.1,3.08912]
[1722468313922,0.03518234,3237.3,3237.2,3.08907]
[1722468314274,1.00560361,3237.3,3237.2,3.08907]
[1722468315248,1.00560361,3237.3,3237.1,3.08912]
[1722468315432,0.03518234,3237.3,3237.2,6.17816]
[1722468316121,0.03518234,3237.3,3237.2,8.48506]
[1722468316323,0.97042127,3237.5,3237.4,3.08889]
[1722468317613,1.29389503,3237.6,3237.5,3.0888]
[1722468318194,1.29389503,3237.6,3237.4,3.08887]
[1722468318388,0.97091732,3237.5,3237.4,3.08887]
[1722468318592,1.29389503,3237.6,3237.4,3.08887]
[1722468319212,1.29389503,3237.6,3237.5,3.0888]
[1722468319417,1.29389503,3237.6,3237.4,3.08887]
[1722468319621,0.97091415,3237.5,3237.4,3.08884]
[1722468319778,1.29389503,3237.6,3237.5,3.0888]
[1722468321292,1.29389503,3237.7,3237.6,3.0887]
[1722468321612,1.29380412,3237.7,3237.6,3.0887]
[1722468324848,1.29380412,3237.8,3237.6,3.0887]
[1722468324991,1.29380412,3237.8,3237.7,3.08861]
[1722468325426,1.29388077,3237.8,3237.7,3.08861]
[1722468325621,1.61736165,3237.9,3237.7,3.08861]
[1722468325941,1.29377884,3237.8,3237.7,3.08861]
[1722468326939,1.329281,3237.8,3237.7,3.08861]
[1722468327628,0.03550216,3237.8,3237.7,3.08861]
[1722468327786,0.03550216,3237.8,3237.6,3.0887]
[1722468327787,1.32851363,3237.8,3237.6,3.0887]
[1722468328418,1.292748,3237.7,3237.6,3.0887]
[1722468328820,1.32822757,3237.7,3237.6,3.0887]
[1722468330927,0.03547957,3237.7,3237.6,3.0887]
[1722468331422,1.29260194,3237.8,3237.7,3.08861]
[1722468331836,1.29260194,3237.8,3237.6,3.0887]
[1722468332333,1.29260194,3237.7,3237.6,3.0887]
[1722468332633,1.29260194,3237.8,3237.6,3.0887]
[1722468332822,1.29260194,3237.8,3237.7,3.08861]
[1722468333019,1.29260194,3237.9,3237.6,3.08865]
[1722468333221,0.96929248,3237.7,3237.6,3.08864]
[1722468333411,1.29260194,3237.8,3237.7,3.08861]
[1722468333608,1.29260194,3237.9,3237.8,3.08851]
[1722468333813,1.29260194,3237.9,3237.8,5.48291]